[Event "87th Spanish Championship 2022"]
[Site "Linares"]
[Date "2022.08.13"]
[Round "3.25"]
[White "Argandona Riveiro, Inigo"]
[Black "Bermudez Ureba, Juan Diego"]
[Result "0-1"]
[ECO "A20"]
[WhiteElo "2393"]
[BlackElo "2198"]
[Annotator "TA"]
[PlyCount "82"]
[EventDate "2022.08.11"]
[EventType "swiss"]
[EventCountry "ESP"]
[SourceTitle "playchess.com"]
[Source "ChessBase"]
[SourceQuality "1"]
[TimeControl "5400+30"]

{[%evp 10,82,26,10,50,42,41,20,25,-14,-14,-89,0,-13,-14,-8,0,0,0,0,36,-29,0,0,0,0,62,59,52,50,58,42,30,34,39,45,42,41,40,40,56,37,46,41,65,56,45,-13,-14,-8,-24,-56,-16,-25,-16,-46,22,20,45,-196,-173,-834,-824,-1019,-1020,-29991,-29992,-29993,-29994,-29994,-29994,-29994,-29995,-29995,-29996]} 1. c4 {[%emt 0:07:06]} e5 {[%emt 0:00:12]} 2. g3 {[%emt 0:00:13]} Nf6 {[%emt 0:00:07]} 3. Bg2 {[%emt 0:00:02]} d5 {[%emt 0:00:04]} 4. cxd5 {[%emt 0:00:09]} Nxd5 {[%emt 0:00:03]} 5. Nc3 {[%emt 0:00:06]} Nb6 {[%emt 0:00:04]} 6. e3 {[%emt 0:00:15]} h5 {[%emt 0:07:28] [#] A22: English Opening: 1...e5 2 Nc3 Nf6.} 7. Nf3 $146 {[%emt 0:03:35]} ({Predecessor:} 7. Nge2 h4 8. d4 hxg3 9. hxg3 Rxh1+ 10. Bxh1 Bd6 11. dxe5 Bxe5 12. Qxd8+ Kxd8 13. f4 Bf6 14. e4 {1-0 (39) Tsydypov,Z (2671)-Drygalov,A (2484) Sochi 2019}) 7... Nc6 {[%emt 0:03:09]} 8. O-O {[%emt 0:01:46]} Qd3 {[%emt 0:07:54] The position is equal.} 9. Ng5 {[%emt 0:16:01]} Be7 {[%emt 0:09:21]} 10. f4 {[%emt 0:01:15]} (10. Be4 $11 Qd7 11. Nf3) 10... Bxg5 {[%emt 0:18:00]} (10... Bg4 $1 $17 {[%cal Rg4d1]} 11. Qe1 exf4 12. gxf4 Qd7) 11. fxg5 $11 {[%emt 0:00:03]} Be6 {[%emt 0:01:07]} 12. Be4 {[%emt 0:06:25]} Qd7 {[%emt 0:01:18]} 13. h4 $1 {[%emt 0:07:29]} O-O-O {[%emt 0:01:06]} 14. Qf3 {[%emt 0:02:41]} Rdf8 {[%emt 0:01:08]} 15. Bf5 {[%emt 0:12:51]} (15. b3 $14) 15... Bxf5 {[%emt 0:05:06]} (15... f6 $5 {[%cal Rf6g5]} 16. Ne4 Bxf5 17. Qxf5 Qxf5 18. Rxf5 Nd5 $11) 16. Qxf5 {[%emt 0:00:36]} Qxf5 {[%emt 0:00:03]} 17. Rxf5 {[%emt 0:00:03]} Kd7 {[%emt 0:00:02]} (17... Nc4 $11) 18. b3 $14 {[%emt 0:06:08] And now Ba3 would win.} Ke6 {[%emt 0:00:06]} 19. Rf2 {[%emt 0:01:11] Ba3 is the strong threat.} f5 {[%emt 0:03:18]} 20. gxf6 {[%emt 0:01:01]} gxf6 {[%emt 0:01:09]} 21. Ba3 {[%emt 0:02:20]} Rfg8 {[%emt 0:03:42]} 22. Ne4 {[%emt 0:01:12]} Nd7 {[%emt 0:11:59]} 23. Raf1 {[%emt 0:03:04][%cal Re4f6]} Rh6 {[%emt 0:00:13]} 24. Kh2 {[%emt 0:00:43]} Rg4 {[%emt 0:00:13]} 25. d3 {[%emt 0:01:10]} Rg8 {[%emt 0:03:11]} 26. Rc2 {[%emt 0:07:43][%cal Od3d4]} Rc8 {[%emt 0:02:28]} 27. Rfc1 {[%emt 0:00:19]} Rg6 {[%emt 0:00:26]} 28. Rxc6+ {[%emt 0:00:40]} (28. Kg2 $14) 28... bxc6 $11 {[%emt 0:00:04]} 29. Rxc6+ {[%emt 0:00:02]} Kd5 {[%emt 0:00:15]} 30. Rc4 {[%emt 0:08:11][%cal Oe4d6]} Nb6 {[%emt 0:04:59]} 31. Rc5+ {[%emt 0:00:47]} Ke6 {[%emt 0:00:04]} 32. Rc6+ {[%emt 0:01:42]} Kf5 {[%emt 0:00:11]} ({Better is} 32... Kd7 $15 33. Rxf6 Rxf6 34. Nxf6+ Ke6) 33. Bc5 {[%emt 0:06:28]} Rd8 {[%emt 0:00:50]} 34. g4+ $2 {[%emt 0:02:08] This move loses the game for White.} (34. Kg2 $14 {keeps the upper hand.}) 34... Kxg4 $19 {[%emt 0:00:09] aiming for ...Kf3.} 35. Nxf6+ $2 {[%emt 0:00:08]} (35. Be7 Rh8 36. Rxf6 Rxf6 37. Bxf6) 35... Kf3 {[%emt 0:01:17]} (35... Kxh4 $2 36. Be7 Rd6 37. Nd7+ (37. Bxd6 cxd6 38. Rxd6 Rg3 $14) 37... Kg4 38. Nxe5+ Kf5 39. Bxd6 Rxd6 40. Rc5 $16) 36. d4 {[%emt 0:00:35]} Nd5 {[%emt 0:01:12]} 37. dxe5 {[%emt 0:00:21]} Rg2+ {[%emt 0:00:57] Black mates.} 38. Kh3 {[%emt 0:00:22] [#]} Nf4+ $1 {[%emt 0:00:11][%mdl 512]} 39. exf4 {[%emt 0:00:06]} Rd1 {[%emt 0:00:03][%cal Rd1h1]} 40. Bg1 {[%emt 0:01:10] [#]} Rg3+ $1 {[%emt 0:00:08]} 41. Kh2 {[%emt 0:00:06] [#]} Rd2+ $1 {[%emt 0:00:08] Weighted Error Value: White=0.63/Black=0.17 (very precise)} 0-1

[Event "87th Spanish Championship 2022"]
[Site "Linares"]
[Date "2022.08.13"]
[Round "3.26"]
[White "Serarols Mabras, Bernat"]
[Black "Ilinca Ilinca, Felix Antonio"]
[Result "0-1"]
[ECO "D31"]
[WhiteElo "2357"]
[BlackElo "2162"]
[Annotator "TA"]
[PlyCount "84"]
[EventDate "2022.08.11"]
[EventType "swiss"]
[EventCountry "ESP"]
[SourceTitle "playchess.com"]
[Source "ChessBase"]
[SourceQuality "1"]
[TimeControl "5400+30"]

{[%evp 24,84,25,16,15,-16,-13,-20,0,0,0,-8,0,-67,48,27,43,27,36,46,39,35,43,4,127,102,120,102,118,103,100,83,96,83,117,0,0,-14,-3,-142,-135,-137,-145,-479,-484,-506,-506,-1426,-1329,-29987,-29988,-29988,-29989,-29989,-29978,-29984,-29985,-29985,-29986,-29986,-29987,-29987,-29987]} 1. d4 {[%emt 0:01:01]} d5 {[%emt 0:01:01]} 2. c4 {[%emt 0:00:45]} e6 {[%emt 0:01:22]} 3. Nc3 {[%emt 0:00:30]} Bb4 {[%emt 0:01:23]} 4. a3 {[%emt 0:00:18]} Bxc3+ {[%emt 0:03:45]} 5. bxc3 {[%emt 0:01:49]} Nf6 6. cxd5 {[%emt 0:04:58]} exd5 {[%emt 0:05:08]} 7. e3 {[%emt 0:00:12]} O-O {[%emt 0:09:50]} 8. Bd3 {[%emt 0:00:41]} c5 {[%emt 0:04:43]} 9. Ne2 {[%emt 0:02:02]} b6 {[%emt 0:03:20]} 10. O-O {[%emt 0:00:30]} Ba6 {[%emt 0:06:02]} 11. f3 {[%emt 0:10:24]} Re8 {[%emt 0:19:14] 11...Re8 is better than 11...Bxd3.} 12. Ng3 Bxd3 {[%emt 0:07:08]} 13. Qxd3 {[%emt 0:07:45]} Nc6 {[%emt 0:03:22] E49: Nimzo-Indian: Rubinstein: 5 Bd3 d5 6 a3 Bxc3+ 7 bxc3.} 14. Re1 {[%emt 0:06:42] [#]} h5 $146 {[%emt 0:12:37]} ({Predecessor:} 14... Qd7 15. Bb2 Rad8 16. Rad1 Na5 17. e4 dxe4 18. fxe4 Qg4 19. e5 c4 20. Qc2 Nd5 21. Re4 {½-½ (36) Kantorik,M (2364)-Bernasek,J (2422) Roznov 2002}) 15. Nh1 {[%emt 0:17:30]} Qd7 {[%emt 0:08:46] The position is equal.} 16. Nf2 {[%emt 0:03:09]} Re7 {[%emt 0:05:05]} 17. Bb2 {[%emt 0:12:43]} Rae8 {[%emt 0:00:52]} 18. Rad1 {[%emt 0:08:25]} (18. Re2 $1 $11) 18... g6 {[%emt 0:02:07]} (18... c4 $15 19. Qd2 Na5) 19. Bc1 {[%emt 0:03:38]} c4 {[%emt 0:02:51]} 20. Qc2 {[%emt 0:05:59]} Qf5 {[%emt 0:00:08]} 21. Qxf5 {[%emt 0:00:49]} gxf5 {[%emt 0:00:01]} 22. Nh3 b5 {[%emt 0:01:31]} 23. e4 {[%emt 0:02:14]} fxe4 {[%emt 0:00:23]} (23... dxe4 $11 24. Bg5 Nd5 25. Bxe7 Ncxe7) 24. Bg5 $16 {[%emt 0:00:05]} Kg7 {[%emt 0:00:51][%cal Bg8g7,Bg7f6,Bf6g5][%mdl 32]} 25. Nf4 {[%emt 0:01:56] [#] Threatens to win with Bxf6+.} Rd7 {[%emt 0:00:01]} 26. Bxf6+ {[%emt 0:01:20]} Kxf6 {[%emt 0:00:06]} 27. fxe4 {[%emt 0:00:53]} dxe4 {[%emt 0:00:02]} 28. Nxh5+ {[%emt 0:00:04]} (28. h4 {seems wilder.} e3 29. Rf1 a5 30. Rf3) 28... Kg5 {[%emt 0:00:27] [#]} 29. Ng3 {[%emt 0:00:37]} (29. g4 $1 $16) 29... f5 $36 {[%emt 0:00:22][%mdl 2048] Black is pushing.} 30. Rb1 {[%emt 0:00:05]} a6 {[%emt 0:00:34]} 31. a4 {[%emt 0:00:05]} (31. Re2 $11 {keeps the balance.}) 31... b4 $1 $17 {[%emt 0:01:19]} ({But not} 31... bxa4 32. Ra1 $14) 32. cxb4 {[%emt 0:00:05]} Nxd4 {[%emt 0:00:18] ...c3 is the strong threat. Black is more active.} 33. b5 $2 {[%emt 0:00:06][%mdl 8192] This move loses the game for White.} (33. Rbc1 $17) 33... axb5 $19 {[%emt 0:00:15]} 34. axb5 {[%emt 0:00:01]} c3 {[%emt 0:00:48][%cal Bc4c3,Bc3c2][%mdl 32]} 35. Ne2 {[%emt 0:02:48]} (35. Re3 $142 c2 36. Rc1) 35... c2 {[%emt 0:00:51] ( -> ...Nxe2+)} 36. Rbc1 {[%emt 0:00:09]} Nxe2+ {[%emt 0:00:19] Black mates.} 37. Rxe2 {[%emt 0:00:01] KRR-KRR} Rd1+ {[%emt 0:00:08]} 38. Re1 {[%emt 0:00:00]} Red8 {[%emt 0:00:33]} 39. Kf2 {[%emt 0:00:10]} R8d2+ {[%emt 0:01:17]} 40. Ke3 {[%emt 0:00:07]} f4+ {[%emt 0:00:22]} 41. Kxe4 {[%emt 0:00:04]} Rxe1+ {[%emt 0:00:05]} 42. Rxe1 {[%emt 0:00:01]} Rd1 {[%emt 0:00:06] Weighted Error Value: White=0.77/Black=0.20 (precise)} 0-1

[Event "87th Spanish Championship 2022"]
[Site "Linares"]
[Date "2022.08.13"]
[Round "3.27"]
[White "Rey Martinez, Jaime"]
[Black "Domingo Nunez, Ruben"]
[Result "1/2-1/2"]
[ECO "B14"]
[WhiteElo "2117"]
[BlackElo "2361"]
[Annotator "TA"]
[PlyCount "74"]
[EventDate "2022.08.11"]
[EventType "swiss"]
[EventCountry "ESP"]
[SourceTitle "playchess.com"]
[Source "ChessBase"]
[SourceQuality "1"]
[TimeControl "5400+30"]

{[%evp 15,74,9,37,23,22,0,0,0,0,0,29,26,26,25,38,22,23,5,39,-32,-18,-21,-18,-29,-1,-30,-3,0,5,0,0,0,0,0,8,0,0,0,0,0,8,-58,10,7,12,0,0,18,58,0,21,10,27,31,62,66,137,0,49,0,110]} 1. e4 {[%emt 0:00:05]} c6 {[%emt 0:00:56]} 2. d4 {[%emt 0:00:45]} d5 3. exd5 {[%emt 0:02:46]} cxd5 {[%emt 0:00:58]} 4. c4 {[%emt 0:00:07]} Nf6 {[%emt 0:00:05]} 5. Nc3 {[%emt 0:00:47]} g6 {[%emt 0:01:30]} 6. Qb3 {[%emt 0:02:15]} Bg7 {[%emt 0:00:31]} 7. cxd5 {[%emt 0:01:02]} O-O {[%emt 0:00:26]} 8. Be2 {[%emt 0:01:18]} a5 {[%emt 0:11:25][%cal Oa5a4]} 9. Bf3 {[%emt 0:07:01] B14: Caro-Kann: Panov-Botvinnik Attack with 5...e6 and 5...g6.} Na6 {[%emt 0:01:08]} 10. Nge2 {[%emt 0:03:52]} Nb4 {[%emt 0:01:00]} 11. O-O {[%emt 0:04:01]} Bf5 $1 12. d6 {[%emt 0:11:41]} exd6 {[%emt 0:18:50] [#]} 13. Qd1 $146 {[%emt 0:07:03]} ({Wrong is} 13. Bxb7 $2 Rb8 14. a3 (14. Bf3 $2 Nc2 $19) 14... Nc2 $19) ({Predecessor:} 13. Bg5 Qd7 14. Qa4 Qxa4 15. Nxa4 Ne4 16. Bf4 Nd5 17. Bxd6 Nxd6 18. Bxd5 Rfe8 19. Rfe1 {0-1 (34) Yanovsky,V (2038)-Ostrovskiy,A (2401) ICC INT 2015}) 13... Qd7 {[%emt 0:23:09]} 14. a3 {[%emt 0:07:03]} Nc6 {[%emt 0:00:26]} 15. h3 {[%emt 0:07:56]} d5 {[%emt 0:14:11]} 16. Ng3 {[%emt 0:01:01]} Be4 {[%emt 0:06:18]} 17. Ngxe4 {[%emt 0:01:45]} (17. Be2 $14) 17... dxe4 $15 {[%emt 0:01:06]} 18. Nxe4 {[%emt 0:00:30]} Nxe4 {[%emt 0:03:01]} 19. Bxe4 {[%emt 0:00:05]} Qxd4 {[%emt 0:07:48]} 20. Bf3 {[%emt 0:04:56]} a4 {[%emt 0:01:17]} 21. Rb1 {[%emt 0:03:34]} Qh4 {[%emt 0:05:35]} 22. g3 {[%emt 0:02:00]} Qf6 {[%emt 0:00:30] Strongly threatening ...Rad8.} (22... Qxh3 $2 23. Bg4 Qxf1+ 24. Qxf1 $18) 23. Bg2 {[%emt 0:00:29]} Rfd8 {[%emt 0:00:24]} 24. Qg4 {[%emt 0:01:15]} Ne5 {[%emt 0:01:14]} 25. Qb4 {[%emt 0:00:36]} Nd3 {[%emt 0:00:36]} 26. Qxb7 {[%emt 0:00:44]} Rab8 {[%emt 0:00:13]} 27. Qa7 {[%emt 0:02:40]} Qd4 {[%emt 0:00:51]} 28. Qa5 {[%emt 0:00:18] [#]} ({White should play} 28. Be3 $11 Qxa7 29. Bxa7 Rxb2 30. Rxb2 Nxb2 31. Rb1) 28... Qc4 {[%emt 0:00:26]} (28... Nxf2 $1 $15 29. Kh2 (29. Rxf2 Qd3 $17) 29... Nd3) 29. Bg5 $11 {[%emt 0:01:23] This bishop pair is nice.} Rd7 {[%emt 0:00:25]} 30. Be3 {[%emt 0:02:35]} h5 {[%emt 0:00:39]} 31. Rfd1 {[%emt 0:01:04][%cal Ob1c1]} h4 {[%emt 0:00:24]} 32. g4 {[%emt 0:01:21]} (32. gxh4 $1 $14 Qxh4 33. Rd2) 32... Bd4 {[%emt 0:00:11]} 33. Qd2 {[%emt 0:00:52]} Bxe3 {[%emt 0:00:49]} 34. Qxe3 {[%emt 0:00:01] And now Bf1 would win.} Rbd8 {[%emt 0:00:12]} 35. Bf1 {[%emt 0:01:00] aiming for Rd2.} Qc2 {[%emt 0:00:15] [#]} (35... Kh7 $14) 36. Qd2 {[%emt 0:00:50]} (36. Rbc1 $1 $16 {[%cal Rc1c2][%mdl 512]} Nxc1 37. Rxd7 Rxd7 38. Qe8+ Kg7 39. Qxd7) 36... Qc4 {[%emt 0:01:03]} (36... Qxd2 $11 37. Rxd2 Nf4 38. Rxd7 Rxd7) 37. Qe3 {[%emt 0:01:14]} (37. Qg5 $14 Qc2 38. Bxd3 (38. Qxh4 Ne5 $11) 38... Rxd3 39. Qxd8+ Rxd8 40. Rxd8+ Kg7 41. Re1) 37... Qc2 {[%emt 0:00:04] Weighted Error Value: White=0.22 (precise) /Black=0.17 (very precise)} 1/2-1/2

[Event "87th Spanish Championship 2022"]
[Site "Linares"]
[Date "2022.08.13"]
[Round "3.28"]
[White "Martinez Fernandez, Adrian"]
[Black "Garcia Fernandez, Victor"]
[Result "1-0"]
[ECO "B31"]
[WhiteElo "2366"]
[BlackElo "2158"]
[Annotator "TA"]
[PlyCount "71"]
[EventDate "2022.08.11"]
[EventType "swiss"]
[EventCountry "ESP"]
[SourceTitle "playchess.com"]
[Source "ChessBase"]
[SourceQuality "1"]
[TimeControl "5400+30"]

{[%evp 9,71,16,29,26,34,24,45,21,31,14,0,-15,-7,-19,-17,-16,25,18,84,93,137,134,151,162,141,115,171,132,151,159,168,163,253,173,166,145,207,177,179,178,228,180,183,144,168,154,284,277,1009,1019,961,579,910,1035,1047,979,954,894,1252,1221,29978,29979,29984,29985]} 1. e4 {[%emt 0:00:33]} c5 {[%emt 0:00:10]} 2. Nf3 {[%emt 0:00:52]} Nc6 {[%emt 0:00:26]} 3. Bb5 {[%emt 0:05:19]} g6 {[%emt 0:00:27]} 4. Bxc6 {[%emt 0:00:57]} dxc6 {[%emt 0:00:16]} 5. d3 {[%emt 0:00:22]} Qc7 {[%emt 0:00:37]} 6. h3 {[%emt 0:00:20] B31: Sicilian: 2...Nc6 3 Bb5 g6.} Bg7 {[%emt 0:01:14]} 7. O-O {[%emt 0:00:52]} h6 {[%emt 0:00:42] [#]} 8. Nh2 $146 {[%emt 0:01:09] White is slightly better.} ({Predecessor:} 8. Nc3 Nf6 9. Be3 b6 10. Nd2 Nh5 11. f4 Bd4 12. Bxd4 cxd4 13. Ne2 c5 14. a4 {½-½ (32) Najer,E (2635)-Fedoseev,V (2664) Douglas 2019}) 8... e5 {[%emt 0:04:46]} 9. f4 {[%emt 0:01:04]} Ne7 {[%emt 0:06:59]} 10. Be3 {[%emt 0:00:43]} exf4 {[%emt 0:03:49]} 11. Bxf4 {[%emt 0:03:32]} Qb6 {[%emt 0:00:19]} 12. Nd2 {[%emt 0:01:50]} Be6 {[%emt 0:04:45]} (12... Bxb2 $2 13. Nc4 Qd8 14. Nd6+ (14. Nxb2 Qd4+ 15. Kh1 Qxb2 $16) 14... Kd7 15. Nxf7 $18) 13. Be3 {[%emt 0:05:26]} Rd8 {[%emt 0:03:33] [#]} (13... Bxb2 14. Rb1 $16) (13... Qd8 $11) 14. Nb3 $1 $16 {[%emt 0:07:10]} Bxb3 {[%emt 0:27:17]} 15. axb3 {[%emt 0:00:26]} h5 {[%emt 0:04:22]} 16. Qf3 {[%emt 0:02:46]} O-O {[%emt 0:01:51]} 17. Qf2 {[%emt 0:00:09]} Bd4 {[%emt 0:01:38]} (17... f5 $16 {is a better defense.}) 18. Nf3 {[%emt 0:17:16]} Bxe3 {[%emt 0:00:59]} 19. Qxe3 {[%emt 0:00:07] Black must now prevent Qh6.} f6 {[%emt 0:00:56]} 20. Nd2 {[%emt 0:01:20]} f5 {[%emt 0:17:08]} (20... Kg7 $142 21. Nc4 Qc7 22. Rxa7 Nc8) 21. Nc4 {[%emt 0:09:42]} Qc7 {[%emt 0:00:11]} 22. Qxc5 {[%emt 0:00:12]} fxe4 {[%emt 0:02:58]} (22... b6 $16 23. Qe3 f4) 23. Rxf8+ {[%emt 0:01:43]} (23. Qxa7 exd3 24. Rxf8+ Kxf8 $15) 23... Rxf8 {[%emt 0:00:16]} 24. dxe4 {[%emt 0:00:07]} Qg3 {[%emt 0:05:48]} (24... Nc8 {was called for.} 25. Ne5 Rf6 26. Qc4+ Kg7) 25. Qxa7 {[%emt 0:14:39]} (25. Qxe7 Rf2 26. Ne3 Qxe3 $11) 25... g5 {[%emt 0:06:12]} 26. Qc5 {[%emt 0:01:42]} ({Worse is} 26. Qxb7 Ng6 27. Ra8 (27. Qxc6 Nf4 $11) (27. Ra7 Qf2+ 28. Kh1 Qf1+ 29. Kh2 Qf4+ 30. Kh1 Qc1+ 31. Kh2 Qf4+ 32. Kh1 Qc1+ 33. Kh2 Qf4+ $11) 27... Qf2+ 28. Kh2 Qf4+ 29. Kh1 Qc1+ 30. Kh2 Qf4+ 31. Kh1 Qc1+ 32. Kh2 Qf4+ $11) 26... Ng6 {[%emt 0:00:46] [#] And now ...Nf4 would win.} 27. Qe3 {[%emt 0:01:24]} Qh4 {[%emt 0:00:59]} (27... h4 $16 28. Qxg3 hxg3) 28. Nd6 $18 {[%emt 0:04:19]} g4 $2 {[%emt 0:01:21]} (28... Qf4 29. Qxf4 Nxf4 30. Nxb7 Kg7) 29. Nf5 {[%emt 0:00:21]} Qf6 {[%emt 0:00:01]} 30. hxg4 {[%emt 0:00:07] Threatens to win with Rf1.} hxg4 {[%emt 0:01:05]} 31. Rf1 {[%emt 0:02:16][%cal Ba1f1,Bf1d1,Bd1d6,Bd6d8][%mdl 32] Nh6+ is the strong threat.} Qe6 {[%emt 0:01:38]} 32. Qh6 {[%emt 0:02:21][%csl Gf5][%cal Rh6g7]} Rf7 {[%emt 0:00:37] Inhibits Qg7+.} 33. Qg5 {[%emt 0:00:02] White wants to mate with Nh6+.} Kh8 {[%emt 0:01:49]} 34. Rd1 {[%emt 0:01:17] Rd8+ would kill now.} Nf8 {[%emt 0:01:00]} 35. Rd6 {[%emt 0:04:20]} Qe8 {[%emt 0:00:01]} 36. Rd8 {[%emt 0:03:20] Weighted Error Value: White=0.34/Black=0.51} 1-0

[Event "87th Spanish Championship 2022"]
[Site "Linares"]
[Date "2022.08.13"]
[Round "3.29"]
[White "Centeno Mendoza, Julio Stefano"]
[Black "Domingo Nunez, Alejandro"]
[Result "1/2-1/2"]
[ECO "B10"]
[WhiteElo "2148"]
[BlackElo "2335"]
[Annotator "TA"]
[PlyCount "77"]
[EventDate "2022.08.11"]
[EventType "swiss"]
[EventCountry "ESP"]
[SourceTitle "playchess.com"]
[Source "ChessBase"]
[SourceQuality "1"]
[TimeControl "5400+30"]

{[%evp 10,77,17,16,11,25,25,-15,34,48,51,35,38,35,54,60,59,32,63,62,65,35,52,49,52,43,37,36,46,0,-11,-27,0,0,0,0,0,0,0,0,0,0,0,-21,41,23,35,10,11,10,10,10,18,11,11,11,17,16,31,29,27,0,0,0,0,-20,0,0,0,-12]} 1. e4 c6 {[%emt 0:00:14]} 2. Nc3 {[%emt 0:00:13]} d5 {[%emt 0:00:03]} 3. Nf3 {[%emt 0:00:12]} dxe4 4. Nxe4 {[%emt 0:00:11]} Nf6 {[%emt 0:00:11]} 5. Qe2 Nxe4 {[%emt 0:00:04]} 6. Qxe4 {[%emt 0:00:56]} Qa5 {B11: Caro-Kann: Two Knights Variation.} 7. Qf4 Qf5 {[%emt 0:00:32]} 8. Qe3 {[%emt 0:03:10]} Qe6 {[%emt 0:05:37]} (8... Qxc2 $11 {feels stronger.} 9. Bd3 Qa4) 9. d4 $14 {[#]} f6 $146 {Prevents Ne5.} ({Predecessor:} 9... Qxe3+ 10. Bxe3 Bf5 11. O-O-O e6 12. Nh4 Be4 13. f3 Bg6 14. c4 Bd6 15. d5 cxd5 16. cxd5 {½-½ (42) Shyam,S (2509)-Bernadskiy,V (2547) Montebelluna 2018}) 10. Bd3 {[%emt 0:06:48]} Qxe3+ {[%emt 0:01:06]} 11. Bxe3 Be6 {[%emt 0:04:42]} 12. O-O {[%emt 0:04:38]} Nd7 {[%emt 0:02:22]} 13. c4 {[%emt 0:05:01]} g5 {[%emt 0:00:43]} 14. Rfe1 {[%emt 0:04:00][%cal Oe3g5]} Bf7 {[%emt 0:00:38]} 15. b3 {[%emt 0:04:42] White is more active.} Bg6 {[%emt 0:01:28] Against Bf5} 16. Bf1 h5 17. h4 {[%emt 0:04:18]} g4 {[%emt 0:00:42]} 18. Nd2 {[%emt 0:00:06]} Kf7 {[%emt 0:00:15]} 19. g3 {[%emt 0:01:48]} ({White should try} 19. c5 $14) 19... e5 $11 {[%emt 0:18:28]} 20. a3 {[%emt 0:13:36]} Rd8 {[%emt 0:21:38]} 21. b4 {[%emt 0:06:38]} exd4 {[%emt 0:13:10]} 22. Bxd4 {[%emt 0:00:13]} Bh6 {[%emt 0:03:56]} 23. Nb3 {[%emt 0:05:46][%cal Bd2b3,Bb3a5,Ba5c4][%mdl 32]} Ne5 {[%emt 0:01:21]} 24. Bxe5 {[%emt 0:00:39]} fxe5 {[%emt 0:00:01]} 25. Na5 {[%emt 0:00:51]} Rd7 {[%emt 0:01:45]} 26. Rad1 {[%emt 0:00:37]} Re7 {[%emt 0:08:41]} ({Don't take} 26... Rxd1 27. Rxd1 Rb8 28. c5 $14) (26... Rhd8 $1 $11 27. Rxd7+ Rxd7) 27. c5 $14 {[%emt 0:03:16]} e4 {[%emt 0:02:00]} 28. Nc4 {[%emt 0:00:17]} Kg7 {[%emt 0:00:44]} 29. Bg2 {[%emt 0:02:01]} Rf8 {[%emt 0:06:20]} 30. Rd4 {[%emt 0:01:55][%cal Rg2e4]} Kh8 {[%emt 0:02:44]} 31. Rd6 {[%emt 0:01:26]} ({Avoid the trap} 31. Bxe4 $2 Bg7 32. Rdd1 Rxe4 $19) 31... Kh7 {[%emt 0:00:22]} 32. Re2 {[%emt 0:03:05]} Bg7 {[%emt 0:04:38]} 33. Rd1 {[%emt 0:02:25][%cal Bd6d1,Bd1e1,Be1c1][%mdl 32]} Rf6 {[%emt 0:01:28]} 34. Rde1 {[%emt 0:03:46][%cal Rg2e4]} Rfe6 {[%emt 0:00:18]} 35. Nd6 {[%emt 0:00:15][%cal Rg2e4]} Bc3 {[%emt 0:00:55] The position is equal.} 36. Rc1 {[%emt 0:00:08]} Bg7 {[%emt 0:00:36]} 37. Nc8 {[%emt 0:03:11]} Re8 {[%emt 0:00:32]} 38. Nd6 {[%emt 0:00:05]} ({Don't blunder} 38. Nxa7 $2 Ra8 39. Rce1 Rxa7 $19) 38... R8e7 {[%emt 0:00:03]} 39. Nc8 {[%emt 0:00:05] Weighted Error Value: White=0.11 (very precise) /Black=0.09 (flawless)} 1/2-1/2

[Event "87th Spanish Championship 2022"]
[Site "Linares"]
[Date "2022.08.13"]
[Round "3.30"]
[White "Gomez Dieguez, David"]
[Black "Diaz Mino, Daniel"]
[Result "1-0"]
[ECO "B20"]
[WhiteElo "2372"]
[BlackElo "2151"]
[Annotator "TA"]
[PlyCount "57"]
[EventDate "2022.08.11"]
[EventType "swiss"]
[EventCountry "ESP"]
[SourceTitle "playchess.com"]
[Source "ChessBase"]
[SourceQuality "1"]
[TimeControl "5400+30"]

{[%evp 9,57,28,28,31,32,25,26,28,39,22,30,23,56,30,66,68,87,71,99,94,93,61,106,42,54,54,95,76,180,118,87,62,71,45,33,35,47,46,161,155,211,217,172,159,227,257,888,882,29997,29998]} 1. e4 {[%emt 0:00:02]} c5 {[%emt 0:00:07]} 2. Ne2 {[%emt 0:00:06]} d6 {[%emt 0:00:35]} 3. g3 {[%emt 0:00:11]} g6 {[%emt 0:01:20]} 4. Bg2 {[%emt 0:00:09]} Bg7 {[%emt 0:00:04]} 5. c3 {[%emt 0:00:11]} e6 {[%emt 0:12:12]} 6. d4 {[%emt 0:01:30] B20: Sicilian: Unusual White 2nd moves.} cxd4 {[%emt 0:00:21]} 7. cxd4 {[%emt 0:00:05]} Ne7 {[%emt 0:00:25]} 8. Nbc3 {[%emt 0:02:08] White has an edge.} O-O {[%emt 0:01:37]} 9. O-O {[%emt 0:01:34]} Nbc6 {[%emt 0:11:02]} 10. Be3 {[%emt 0:06:04]} a6 {[%emt 0:07:21]} 11. Qd2 {[%emt 0:05:02]} Re8 {[%emt 0:09:05] [#]} 12. Rfd1 $146 {[%emt 0:17:56]} ({Predecessor:} 12. Rac1 b5 13. a3 Na5 14. e5 Nc4 15. Qd3 d5 16. Rc2 Nc6 17. Bc1 b4 18. Na4 {1-0 (36) Sajjad,A (1780)-Ahmed,J (2066) Baghdad 2018}) 12... d5 {[%emt 0:10:56]} 13. Bg5 {[%emt 0:07:24]} Qd7 {[%emt 0:02:13]} 14. e5 {[%emt 0:03:40]} b5 {[%emt 0:02:02]} 15. b3 {[%emt 0:06:27]} Qa7 {[%emt 0:08:11]} 16. Qf4 {[%emt 0:04:54]} ({White should try} 16. g4 $16) 16... Bd7 $14 {[%emt 0:02:25]} 17. g4 {[%emt 0:06:28] Inhibits Nf5.} Rac8 {[%emt 0:01:12]} 18. Rd3 {[%emt 0:14:36]} Qb8 {[%emt 0:13:27]} (18... b4 $16 {was worth a try.}) 19. Rf3 {[%emt 0:02:18]} (19. Bf6 $18) 19... Nd8 $16 {[%emt 0:03:44]} 20. Bh6 {[%emt 0:02:22]} Bh8 {[%emt 0:01:44]} 21. Qg5 {[%emt 0:03:04] aiming for Qh4. White is much more active.} b4 {[%emt 0:02:42]} 22. Na4 $36 {[%emt 0:00:23][%mdl 2048] White has good play.} Bxa4 {[%emt 0:02:00]} 23. bxa4 {[%emt 0:00:39] And now Rh3 would win.} Rc4 {[%emt 0:00:07]} (23... Rc2 $14 24. Bf1 Nec6) 24. Rd1 $18 {[%emt 0:01:05]} Nec6 {[%emt 0:01:20] [#]} (24... Qc7 $16) 25. Qh4 $1 {[%emt 0:01:27]} Qa7 {[%emt 0:02:56][%cal Rc6d4]} 26. Be3 {[%emt 0:00:23][%cal Bh6e3,Be3g5,Bg5f6][%mdl 32] Threatens to win with Rh3. This bishop pair is nice.} Qe7 {[%emt 0:00:35]} (26... Rf8 $16 27. Rd2 (27. Rh3 f6 $14) 27... a5) 27. Bg5 {[%emt 0:01:21]} Qa7 {[%emt 0:01:22]} (27... f6 28. exf6 Qf7) 28. Bf6 {[%emt 0:01:41][%cal Oh4h7] Threatening mate with Qxh7+!} ({Weaker is} 28. Rh3 f6 29. exf6 Rf8 $18) 28... Nxd4 {[%emt 0:02:10] [#]} 29. Qxh7+ $3 {[%emt 0:00:30][%mdl 576] Decoy, Back Rank.  Weighted Error Value: White=0.13 (very precise) /Black=0.44} 1-0